Cogmind - Beta 13 @@@ ROGUE MODE // 2024.04.17 @ 23:49:11 Player: FlyingLemon Result: Self-destructed Performance ------------- Evolutions (3) 1500 Regions Visited (5) 1000 Robots Destroyed (52) 260 Value Destroyed (1303) 1303 Prototype IDs (3) 60 Alien Tech Used (0) 0 Bonus (60) 60 TOTAL SCORE: 4183 Bonus ------- Follower Combat Kills 60 Cogmind --------- Core Integrity 521/700 Matter 61/300 Energy 28/100 System Corruption 0% Temperature Cool (0) Movement Treading (160) Location -7/Factory Parts ------- > --- POWER (2) -------- (None) > --- PROPULSION (5) --- Medium Treads > --- UTILITY (4) ------ Weight Redist. System Improved Targeting Computer Hacking Suite System Shield > --- WEAPON (2) ------- Flak Gun Flak Gun > --- INVENTORY (5) ---- Weight Redist. System Weight Redist. System System Shield Precision Shock Rifle Improved Datajack Peak State ------------ > --- POWER ------------ Cooled Ion Engine > --- PROPULSION ------- Flight Unit Flight Unit Flight Unit Flight Unit Flight Unit > --- UTILITY ---------- Advanced Weight Redist. System Improved Targeting Computer Hacking Suite System Shield > --- WEAPON ----------- Minigun Gauss Rifle > --- INVENTORY -------- Weight Redist. System Weight Redist. System Weight Redist. System Minigun [Rating: 26] Favorites ----------- Power Light Ion Engine Engine Light Ion Engine Propulsion Light Treads Treads Light Treads Leg Improved Aluminum Leg Flight Unit Flight Unit Utility Large Storage Unit Device Sensor Array Storage Large Storage Unit Processor Signal Interpreter Hackware System Shield Weapon Autogun Energy Gun Precision Shock Rifle Ballistic Gun Autogun Launcher Grenade Launcher Build | -11 -10 -9 -9 -8 -7 ------- Run | Yrd Mat Mat Sto Mat Fac Slots Evolved 6 | . . 2 . 2 2 Power 1 | . . . . 1 . Propulsion 3 | . . 1 . 1 1 Utility 2 | . . 1 . . 1 Weapon . | . . . . . . Parts Attached 56 | 8 4 2 18 11 13 Power 7 | 1 1 . 4 1 . Engine 7 | 1 1 . 4 1 . Core . | . . . . . . Reactor . | . . . . . . Propulsion 18 | 3 . . 9 4 2 Treads 9 | 2 . . 6 . 1 Leg 4 | 1 . . 3 . . Wheel . | . . . . . . Hover . | . . . . . . Flight 5 | . . . . 4 1 Utility 14 | 2 3 1 1 2 5 Device 6 | . 1 1 . 1 3 Storage 3 | 2 1 . . . . Processor 3 | . 1 . 1 1 . Hackware 2 | . . . . . 2 Protection . | . . . . . . Artifact . | . . . . . . Weapon 17 | 2 . 1 4 4 6 Energy Gun 1 | . . . . . 1 Energy Cannon . | . . . . . . Ballistic Gun 15 | 2 . 1 4 3 5 Ballistic Cannon . | . . . . . . Launcher 1 | . . . . 1 . Special Weapon . | . . . . . . Impact Weapon . | . . . . . . Slashing Weapon . | . . . . . . Piercing Weapon . | . . . . . . Special Melee Weapon . | . . . . . . Unidentified Prototypes 3 | . . . 2 . 1 Parts Lost 20 | . . . 8 4 8 Power 4 | . . . 2 1 1 Propulsion 10 | . . . 3 2 5 Utility 2 | . . . 1 . 1 Weapon 4 | . . . 2 1 1 Highest Loss Streak 7 | . . . 5 3 7 To Critical Strikes 1 | . . . 1 . . Average Slot Usage (%) 89 | . 99 88 96 84 57 Engine 10 | . 14 11 10 15 1 Treads 18 | . 28 22 25 . 2 Leg 5 | . . . 5 22 . Flight 1 | . . . . 1 10 Device 8 | . 13 11 9 . 6 Storage 9 | . 14 11 11 8 . Processor 9 | . . 11 12 18 7 Hackware 2 | . . . . . 13 Ballistic Gun 21 | . 28 22 21 16 13 Naked Turns . | . . . . . . Heaviest Build 39 | 12 27 29 35 39 16 Greatest Support 60 | 40 46 40 60 39 34 Greatest Overweight (x) 3 | . . . 1 2 3 Average Overweight (x) . | . . . . . . Largest Inventory Capacity 15 | 8 15 15 15 15 5 Average Capacity 12 | 7 13 15 15 14 5 Most Carried 15 | 7 15 15 15 15 5 Average Carried 11 | 5 12 14 14 13 4 Final Capacity 15 | 8 15 15 15 5 5 Final Carried 15 | 6 15 15 11 4 5 Class Distribution -------------------- 83% | Mutant 12% | Hacker-Mutant Dominant Class ---------------- Mutant | -10/Materials Mutant | -9/Materials Mutant | -9/Storage Mutant | -8/Materials Hacker-Mutant | -7/Factory Resources | -11 -10 -9 -9 -8 -7 ----------- Run | Yrd Mat Mat Sto Mat Fac Matter Collected 1620 | 209 240 . 784 180 207 Remotely . | . . . . . . Salvage Created 1712 | 69 296 . 971 199 177 Parts 118 | 2 30 . 58 14 14 Haulers Intercepted . | . . . . . . Recyclers Shooed 1 | . . . 1 . . Parts Field Recycled . | . . . . . . Retrieved Matter . | . . . . . . Parts Self-Destructed . | . . . . . . Prevented . | . . . . . . Kills | -11 -10 -9 -9 -8 -7 ------- Run | Yrd Mat Mat Sto Mat Fac Combat Hostiles Destroyed 42 | . 11 . 21 8 2 Guns 42 | . 11 . 21 8 2 Classes Destroyed 10 | 1 3 . 1 1 4 Worker 1 | . . . . . 1 Builder 1 | . . . . . 1 Recycler 3 | 1 . . 2 . . Operator 2 | . . . . . 2 Watcher 3 | . 2 . 1 . . Swarmer 18 | . 6 . 6 6 . Grunt 15 | . 5 . 10 . . Duelist 1 | . . . . 1 . Sentry 7 | . . . 5 1 1 Programmer 1 | . . . . . 1 Best Kill Streak 8 | 1 6 . 7 8 2 Combat Bots Only 8 | . 6 . 7 8 1 Max Kills in Single Turn 2 | 1 2 . 1 2 1 Gunslinging 1 | . 1 . . 1 . Exploded . | . . . . . . Melee . | . . . . . . Uniques/NPCs Destroyed . | . . . . . . Combat | -11 -10 -9 -9 -8 -7 -------- Run | Yrd Mat Mat Sto Mat Fac Hostile Shots Fired 437 | . 44 . 153 102 138 Missed 144 | . 12 . 42 29 61 Damage Taken 3461 | . 342 . 1531 821 767 Core 706 | . 17 . 304 206 179 Absorbed by Shields . | . . . . . . Regen/Repaired (Parts) 135 | . . . 135 . . Core Remaining (%) 69 | 100 93 . 24 62 . Volleys Fired 163 | . 28 . 89 19 27 Largest 2 | . 2 . 2 2 2 Hottest 56 | . 40 . 46 55 56 Shots Fired 320 | . 56 . 173 37 54 Gun 318 | . 56 . 173 35 54 Cannon . | . . . . . . Launcher 2 | . . . . 2 . Special . | . . . . . . Kinetic 318 | . 56 . 173 35 54 Thermal . | . . . . . . Explosive 2 | . . . . 2 . Electromagnetic . | . . . . . . Robot Hit Streak 14 | . 7 . 11 10 14 Robot Miss Streak 9 | . 3 . 4 4 9 Penetration Max . | . . . . . . Secondary Targets 10 | . 4 . 3 3 . Max Gunslinging Chain 1 | . 1 . 1 1 . Shots Hit Robots 210 | . 37 . 111 27 35 Core Hits 86 | . 20 . 37 10 19 Critical Kills 1 | . . . 1 . . Critical Parts Destroyed 2 | . 1 . . 1 . Critical Strikes 4 | . 1 . 2 1 . Destroy 4 | . 1 . 2 1 . Melee Attacks . | . . . . . . Impact . | . . . . . . Slashing . | . . . . . . Piercing . | . . . . . . Sneak Attacks . | . . . . . . Combat Hostiles . | . . . . . . Follow-up Attacks . | . . . . . . Damage Inflicted 3539 | 15 500 . 1869 571 584 Guns 3373 | . 495 . 1867 435 576 Cannons . | . . . . . . Explosions 136 | . . . . 136 . Melee . | . . . . . . Ramming 30 | 15 5 . 2 . 8 Kinetic 3373 | . 495 . 1867 435 576 Thermal . | . . . . . . Explosive 136 | . . . . 136 . Electromagnetic . | . . . . . . Impact . | . . . . . . Slashing . | . . . . . . Piercing . | . . . . . . Highest Corruption . | . . . . . . Average Corruption . | . . . . . . Corruption Purged . | . . . . . . Corruption Blocked . | . . . . . . Overload Shots . | . . . . . . Overflow Damage 10 | . . . . 10 . Projectiles . | . . . . . . Explosions 10 | . . . . 10 . Melee . | . . . . . . Knockbacks . | . . . . . . Impact . | . . . . . . Kinetic . | . . . . . . Secondary . | . . . . . . Self-Inflicted Damage . | . . . . . . Shots . | . . . . . . Rammed 15 | 3 1 . 1 . 10 Targets Rammed 16 | 4 1 . 1 . 10 Kicked . | . . . . . . Crushed 1 | 1 . . . . . Highest Temperature 34 | . 20 . 34 12 14 Average Temperature 7 | . 10 . 8 6 7 Received Heat Transfer 891 | . 108 . 537 126 120 Siege Activations . | . . . . . . Robots Corrupted . | . . . . . . Combat Hostiles . | . . . . . . Parts Fried . | . . . . . . Impact Corruptions . | . . . . . . Robots Melted . | . . . . . . Combat Hostiles . | . . . . . . Parts Melted . | . . . . . . Heat Transferred . | . . . . . . Parts Sabotaged . | . . . . . . Parts Stolen . | . . . . . . Parts Stripped . | . . . . . . Power Chain Reactions . | . . . . . . Alert | -11 -10 -9 -9 -8 -7 ------- Run | Yrd Mat Mat Sto Mat Fac Peak Influence 471 | 5 220 51 362 471 349 Initial 214 | . 3 51 21 147 214 Average 181 | 1 105 51 211 230 271 Maximum Alert Level 2 | . 1 . 1 2 1 Low Security (%) 53 | 100 75 100 44 66 8 Level 1 43 | . 24 . 55 12 91 Level 2 2 | . . . . 21 . Level 3 . | . . . . . . Level 4 . | . . . . . . Level 5 . | . . . . . . High Security . | . . . . . . Max Security . | . . . . . . Squads Dispatched 15 | . 1 . 5 3 6 Investigation . | . . . . . . Extermination 1 | . . . . . 1 Reinforcement 8 | . 1 . 3 2 2 Assault 2 | . . . 2 . . Garrison 4 | . . . . 1 3 Intercept . | . . . . . . Searches Triggered . | . . . . . . Construction Impeded 1 | . . . . 1 . Haulers Reinforced . | . . . . . . Active Scanning Responses . | . . . . . . Cargo Convoy Interrupts . | . . . . . . Stealth | -11 -10 -9 -9 -8 -7 --------- Run | Yrd Mat Mat Sto Mat Fac Distress Signals 3 | . . . 2 1 . Communications Jammed . | . . . . . . Distress Signals . | . . . . . . Times Spotted 83 | . 19 . 34 21 9 Peak Tracking Total 10 | . 7 . 7 10 3 Tactical Retreats 7 | . . . 2 3 2 Traps | -11 -10 -9 -9 -8 -7 ------- Run | Yrd Mat Mat Sto Mat Fac Traps Triggered 3 | . 1 . 2 . . Indirectly . | . . . . . . Trap Hack Attempts . | . . . . . . Triggered . | . . . . . . Disarmed 9 | . . . 9 . . Reprogrammed . | . . . . . . Reused . | . . . . . . Traps Extracted . | . . . . . . Installed . | . . . . . . Triggered . | . . . . . . Machines | -11 -10 -9 -9 -8 -7 ---------- Run | Yrd Mat Mat Sto Mat Fac Machines Disabled 1 | . . . . 1 . Max in Single Turn 1 | . . . . 1 . Machines Repaired . | . . . . . . Machines Dismantled . | . . . . . . Machines Sabotaged . | . . . . . . Overloaded Fab Kills . | . . . . . . Hacking | -11 -10 -9 -9 -8 -7 --------- Run | Yrd Mat Mat Sto Mat Fac Machines Accessed 11 | . 3 . 7 1 . Terminals 10 | . 3 . 6 1 . Fabricators . | . . . . . . Repair Stations 1 | . . . 1 . . Recycling Units . | . . . . . . Scanalyzers . | . . . . . . Garrison Access . | . . . . . . Total Hacks 19 | . 4 . 14 1 . Successful 12 | . . . 11 1 . Failed 7 | . 4 . 3 . . Catastrophic 3 | . 3 . . . . Database Lockouts . | . . . . . . Manual 12 | . 4 . 7 1 . Terminals 14 | . 4 . 9 1 . Fabricators . | . . . . . . Repair Stations 5 | . . . 5 . . Recycling Units . | . . . . . . Scanalyzers . | . . . . . . Garrison Access . | . . . . . . Terminal Hacks 9 | . . . 8 1 . Record 1 | . . . 1 . . Open Door 2 | . . . 2 . . Level Access Points 1 | . . . 1 . . Disarm Traps 2 | . . . 2 . . Patrol Status 1 | . . . 1 . . Registered Components 2 | . . . 1 1 . Fabricator Hacks . | . . . . . . Repair Station Hacks 3 | . . . 3 . . Scan Component 2 | . . . 2 . . Repair 1 | . . . 1 . . Recycling Unit Hacks . | . . . . . . Scanalyzer . | . . . . . . Garrison Access Hacks . | . . . . . . Unauthorized Hacks . | . . . . . . Terminals . | . . . . . . Fabricators . | . . . . . . Repair Stations . | . . . . . . Recycling Units . | . . . . . . Scanalyzers . | . . . . . . Garrison Access . | . . . . . . Data Cores Recovered . | . . . . . . Used . | . . . . . . Hacking Detections 6 | . 2 . 3 1 . Full Trace Events . | . . . . . . Feedback Events . | . . . . . . Feedback Blocked . | . . . . . . Robot Schematics Acquired . | . . . . . . Robots Built . | . . . . . . Authchips . | . . . . . . Time . | . . . . . . Total Robot Build Rating . | . . . . . . Part Schematics Acquired . | . . . . . . Parts Built . | . . . . . . Authchips . | . . . . . . Time . | . . . . . . Total Part Build Rating . | . . . . . . Parts Repaired 1 | . . . 1 . . Time 26 | . . . 26 . . Parts Recycled . | . . . . . . Recycled Matter . | . . . . . . Retrieved Matter . | . . . . . . Retrieved Components . | . . . . . . Parts Scanalyzed . | . . . . . . Part Schematics Acquired . | . . . . . . Parts Damaged . | . . . . . . Bothacking | -11 -10 -9 -9 -8 -7 ------------ Run | Yrd Mat Mat Sto Mat Fac Used RIF Installer . | . . . . . . Robots Hacked . | . . . . . . Non-combat . | . . . . . . Combat . | . . . . . . Robot Hacks Applied . | . . . . . . Relay Couplers Released . | . . . . . . Fabnet Peak Effective % . | . . . . . . Robots Rewired . | . . . . . . Allies Hacked . | . . . . . . Hacks Repelled . | . . . . . . Allies | -11 -10 -9 -9 -8 -7 -------- Run | Yrd Mat Mat Sto Mat Fac Total Allies 2 | . . . 2 . . Largest Group 2 | . . . 2 . . Highest-Rated Group 62 | . . . 62 . . Highest-Rated Ally 31 | . . . 31 . . Total Orders . | . . . . . . Ally Attacks 10 | . . . 10 . . Total Damage 168 | . . . 168 . . Kills 3 | . . . 3 . . Allies Corrupted . | . . . . . . Allies Melted . | . . . . . . Intel | -11 -10 -9 -9 -8 -7 ------- Run | Yrd Mat Mat Sto Mat Fac Robot Analysis Total . | . . . . . . Derelict Logs Recovered . | . . . . . . Drone Launches . | . . . . . . Drone Recoveries . | . . . . . . Exploration | -11 -10 -9 -9 -8 -7 ------------- Run | Yrd Mat Mat Sto Mat Fac Turns Passed 2809 | 121 672 126 1125 328 437 Spaces Moved 1810 | 68 332 78 520 215 597 Core 12 | 12 . . . . . Treads 916 | 55 332 78 404 . 47 Legs 305 | 1 . . 116 188 . Wheels . | . . . . . . Hover . | . . . . . . Flight 577 | . . . . 27 550 Fastest Speed 28 | 50 160 160 120 31 28 Average Speed 115 | 140 160 160 151 116 50 Slowest Speed 280 | 160 160 160 240 260 280 Overloaded Moves . | . . . . . . Propulsion Burnouts . | . . . . . . Robots Hopped 12 | . . . . . 12 Cave-ins Triggered . | . . . . . . Exploration Rate (%) 31 | 5 64 7 67 23 23 Regions Visited 5 Branch Regions 1 Pre-discovered Areas . | . . . . . . Known Exits Taken 4 | . 1 1 1 1 . Unknown Exits Taken 1 | 1 . . . . . Scrap Searched . | . . . . . . Spaces Dug . | . . . . . . Terrain Destroyed 14 | . . . . 14 . Melee . | . . . . . . Projectile . | . . . . . . AOE 14 | . . . . 14 . Terrain Rammed . | . . . . . . Walls Destroyed . | . . . . . . Machines Disabled . | . . . . . . Actions | -11 -10 -9 -9 -8 -7 --------- Run | Yrd Mat Mat Sto Mat Fac Total 2227 | 90 417 79 718 262 661 Wait 116 | . 36 . 61 5 14 Move 1782 | 67 331 77 519 214 574 Hop 11 | . . . . . 11 Pick Up 55 | 10 13 . 16 8 8 Fast Attach 8 | 3 . . 2 . 3 Attach 33 | 4 1 1 10 10 7 Detach 1 | . . . . . 1 Swap 15 | 1 3 1 6 1 3 Drop 27 | 1 4 . 14 5 3 Fire 163 | . 28 . 89 19 27 Melee . | . . . . . . Ram 2 | . . . . . 2 Kick . | . . . . . . Crush 14 | 4 1 . 1 . 8 Escape Stasis . | . . . . . . Rewire . | . . . . . . Trap . | . . . . . . Miscellaneous . | . . . . . . Route ------- -11/Scrapyard -10/Materials (discovered 2 exits: *Mat / [*Min]) -9/Materials -9/Storage -8/Materials -7/Factory History --------- Turn | Location | Event 6 | -11/Scrapyard | Discovered new exit (range 15) 122 | -11/Scrapyard | Entered Materials 182 | -10/Materials | Discovered new exit (range 6) 315 | -10/Materials | Build established: Mutant 771 | -10/Materials | Discovered new exit (range 14) 793 | -10/Materials | Identified exit to Materials 794 | -10/Materials | Entered another Materials area 794 | -9/Materials | Evolved 2 slots: Propulsion x1, Utility x1 795 | -9/Materials | Discovered new exit (range 7) 805 | -9/Materials | Identified exit to Storage 920 | -9/Materials | Entered Storage 1132 | -9/Storage | Repaired Lgt. Treads 1221 | -9/Storage | Met a pair of Derelict thieves 1381 | -9/Storage | Destroyed 7 combat bots 1719 | -9/Storage | Core integrity fell below 50% 1901 | -9/Storage | Lost 5 parts (1p3n1u) 1956 | -9/Storage | Identified exit to Materials 2035 | -9/Storage | Found Prototype Launcher 2045 | -9/Storage | Entered Materials 2045 | -8/Materials | Evolved 2 slots: Power x1, Propulsion x1 2290 | -8/Materials | Garrison activated, responded to threat 2321 | -8/Materials | Destroyed 8 combat bots 2370 | -8/Materials | Discovered new exit (range 4) 2372 | -8/Materials | Identified exit to Factory 2373 | -8/Materials | Entered Factory 2373 | -7/Factory | Evolved 2 slots: Propulsion x1, Utility x1 2394 | -7/Factory | Lost 3 parts (1p1n1w) 2433 | -7/Factory | Garrison activated, responded to threat 2519 | -7/Factory | Lost 7 parts (1p4n1u1w) 2744 | -7/Factory | Build established: Hacker-Mutant 2810 | -7/Factory | Self-destructed Last Messages --------------- R-06 Scavenger collects Imp. Hover Unit. K-01 Serf cleans the Terminal. Acquired Med. Treads. K-01 Serf cleans the Repair Station. Dropped Minigun. Acquired Flak Gun. K-01 Serf cleans the Repair Station. K-01 Serf cleans the Subcomponent Replicator. Slammed into P-60 Hacker. Flight Unit destroyed. Slammed into P-60 Hacker. K-01 Serf destroyed. Acquired 30 matter. P-60 Hacker destroyed. Acquired 21 matter. R-06 Scavenger collects Corrupted Lgt. Ion Engine. R-06 Scavenger collects Remote Datajack. K-01 Serf collects debris. Slammed into K-01 Serf. K-01 Serf collects debris. Map ----- +----------------------------------------------------+ | ?????????????????????????""" ########+##### " | | ???????????????????????? """ ## ## "Y | | ???????????????????????? """ ## """ + "" | | ???????????????????????? ## """"" ###### | | ???????????????????????# """ ## """"" #????? | | ???????????????????????# """ ## #????? | | ???????????????????????# """ ## """ [ !#????? | | ???????????????????????# |## """"" #????? | | ???????????????????????# """ ## """"" #????? | | ???????????????????????# """ ## #????? | | ???????????????????????# """ ## !! #????? | | ???????????????????????# ##[ [ ! #????? | | ???????????????????????# """ ## [! """#????? | | ???????????????????????# """ ## = R"#????? | | ???????????????????????# """ ## """#????? | | ???????????????????????# ## #????? | | ??????? ######################+########+#####????? | | ??????? #????? | | ??????? #????? | | ?????? #????? | | ?????? + | | ????? # | | ????? #??? | | ????? #????? | | ????????????#########+########+###### #????? | | ???????????????# @ # ## #????? | | ???????????????# # "## ???? | | ???????????????# # T## ??? | | ???????????????# "" "" # "## ?? | | ???????????????# "" "" # ## ? | | ???????????????# """ """ # !!] ## | | ???????????????#! """ """ # !][ ## | | ???????????????# """ """ # !] ## ?? | | ???????????????# # #?#########???? | | ???????????????# # #?????????????? | | ???????????????# # """ #?????????????? | | ???????????????# ] ?# """ #?????????????? | | ???????????????############?# """ #?????????????? | | ????????????????????????????# #?????????????? | | ????????????????????????????####???#?????????????? | | ?????????????????????????????????????????????????? | | ?????????????????????????????????????????????????? | | ?????????????????????????????????????????????????? | | ?????????????????????????????????????????????????? | | ?????????????????????????????????????????????????? | | ?????????????????????????????????????????????????? | | ?????????????????????????????????????????????????? | | ?????????????????????????????????????????????????? | | ?????????????????????????????????????????????????? | | ?????????????????????????????????????????????????? | +----------------------------------------------------+ Best States ------------- Heat Dissipation 34 Energy Generation 23 Energy Capacity 320 Matter Stores 300 Matter Capacity 300 Sight Range 16 Robot Scan Range 14 Terrain Scan Density 10 Additional Mass Support 9 Evasion (%) 64 Targeting Accuracy 6 Recoil Reduction 3 Offensive Hacking 10 Defensive Hacking 10 Item Schematics ----------------- None Robot Schematics ------------------ None Fabricated ------------ Nothing Alien Tech Used ----------------- None Achievements -------------- None Challenges ------------ None Game ------ Seed CoreImprovedPurifier Manual? 0 Play Time 00:34:11 Cumulative 13.5 hours Start 2024.04.17 @ 23:16:05 End 2024.04.17 @ 23:49:11 Sessions 1 Manual Loads 0 Difficulty Rogue Special Mode None Game No. 18 Rogue 18 Adventurer 0 Explorer 0 Win Type - Total 0 Types 0/0/0/0/0/0/0/0/0 Lore% 8 Gallery% 23 Achievement% 19 Wizard Run 0 Options --------- Layout 0 ASCII 0 Keyboard 0 Movement Numpad Keybinds 0 Fullscreen 2 Font 24/Smallcaps Map View 76x50 Zoom Use 0% Tactical HUD 0 Map Filters NONE Filters NONE Steam 1 RUN: c6dedb55-00e0-4b37-ad59-b663e88f364b